bitfinex/quotes_ETHUSD_20250920
["timestamp","ask_amount","ask_price","bid_price","bid_amount"]
[1758409466912,11.26734228,4499.7,4499.6,0.001]
[1758409467207,13.18934228,4499.7,4499.6,0.001]
[1758409476326,13.1893586,4499.7,4499.6,0.001]
[1758409476550,13.18936045,4499.7,4499.6,0.001]
[1758409480465,13.43196045,4499.7,4499.6,0.001]
[1758409493710,13.43215241,4499.7,4499.6,0.001]
[1758409495998,13.43226896,4499.7,4499.6,0.001]
[1758409507818,9.21119773,4499.7,4499.6,0.001]
[1758409512245,9.21125827,4499.7,4499.6,0.001]
[1758409520844,8.96865827,4499.7,4499.6,0.001]
[1758409523546,9.19705827,4499.7,4499.6,0.001]
[1758409532296,8.96865827,4499.7,4499.6,0.001]
[1758409533795,12.30808326,4499.7,4499.6,0.001]
[1758409534293,12.30808326,4499.7,4499.6,0.046]
[1758409534996,12.30808326,4499.7,4499.6,0.001]
[1758409538126,7.83904303,4499.7,4499.6,0.001]
[1758409538420,11.51604303,4499.7,4499.6,0.001]
[1758409538827,11.51604303,4499.7,4499.6,0.046]
[1758409539390,11.51604303,4499.7,4499.6,0.001]
[1758409545124,11.75364303,4499.7,4499.6,0.001]
[1758409545721,11.51604303,4499.7,4499.6,0.001]
[1758409547442,11.51600514,4499.7,4499.6,0.001]
[1758409553964,11.75360514,4499.7,4499.6,0.001]
[1758409554367,12.09118015,4499.7,4499.6,0.001]
[1758409555369,12.0911706,4499.7,4499.6,0.001]
[1758409562284,11.51599559,4499.7,4499.6,0.001]
[1758409563087,4.83899559,4499.7,4499.6,0.001]
[1758409563290,8.15590361,4499.7,4499.6,0.046]
[1758409564283,8.15587043,4499.7,4499.6,0.046]
[1758409564587,4.47787043,4499.7,4499.6,0.046]
[1758409564741,8.15787043,4499.7,4499.6,0.046]
[1758409566043,8.15785459,4499.7,4499.6,0.046]
[1758409569489,8.15785459,4499.7,4499.6,0.001]
[1758409570369,4.47785459,4499.7,4499.6,0.001]
[1758409570579,8.15685459,4499.7,4499.6,0.001]
[1758409578001,8.15658504,4499.7,4499.6,0.001]
[1758409578815,8.15658414,4499.7,4499.6,0.001]
[1758409582315,6.23458414,4499.7,4499.6,0.001]
[1758409585020,6.84027612,4499.7,4499.6,0.001]
[1758409589128,3.16127612,4499.7,4499.6,0.001]
[1758409589293,6.83927612,4499.7,4499.6,0.001]
[1758409590126,6.83947183,4499.7,4499.6,0.001]
[1758409591727,6.83949579,4499.7,4499.6,0.001]
[1758409594210,6.83954257,4499.7,4499.6,0.001]
[1758409601776,11.05945471,4499.7,4499.6,0.001]
[1758409608574,14.05945471,4499.7,4499.6,0.001]
[1758409611241,15.98145471,4499.7,4499.6,0.001]
[1758409624770,17.11102972,4499.7,4499.6,0.001]
[1758409627867,18.11595475,4499.7,4499.6,0.001]
[1758409628959,18.11566724,4499.7,4499.6,0.001]
[1758409661244,18.11576358,4499.7,4499.6,0.001]
[1758409667633,17.87116358,4499.7,4499.6,0.001]
[1758409669372,17.87113136,4499.7,4499.6,0.001]
[1758409671880,17.87111256,4499.7,4499.6,0.001]
[1758409678880,17.53353755,4499.7,4499.6,0.001]
[1758409680563,8.63070038,4499.7,4499.6,0.001]
[1758409680776,12.30770038,4499.7,4499.6,0.001]
[1758409687776,16.52901902,4499.7,4499.6,0.001]
[1758409692208,16.5290726,4499.7,4499.6,0.001]
[1758409692367,16.52907161,4499.7,4499.6,0.001]
[1758409693408,16.52910191,4499.7,4499.6,0.001]
[1758409696872,16.76820191,4499.7,4499.6,0.001]
[1758409699228,16.76818618,4499.7,4499.6,0.001]
[1758409711457,16.52908618,4499.7,4499.6,0.001]
[1758409712340,16.76818618,4499.7,4499.6,0.001]
[1758409715712,16.52908618,4499.7,4499.6,0.001]
[1758409716747,16.52909557,4499.7,4499.6,0.001]
[1758409718961,16.76819557,4499.7,4499.6,0.001]
[1758409719562,16.52909557,4499.7,4499.6,0.001]
[1758409720264,17.10577058,4499.7,4499.6,0.001]
[1758409720562,17.10579773,4499.7,4499.6,0.001]
[1758409729392,6.01441977,4499.6,4499.5,0.001]
[1758409729571,7.02328066,4499.6,4499.5,0.001]
[1758409729893,7.26108066,4499.6,4499.5,0.001]
[1758409730055,7.35019759,4499.6,4499.5,0.001]
[1758409736315,7.35008605,4499.6,4499.5,0.001]
[1758409738346,2.22251855,4499.4,4499.3,1e-08]
[1758409738548,14.92158654,4499.4,4499.3,1e-08]
[1758409738921,15.15938654,4499.4,4499.3,1e-08]
[1758409739349,3.01461735,4499.2,4499.0,0.001]
[1758409739647,10.70030939,4499.2,4499.0,0.001]
[1758409740146,10.93810939,4499.2,4499.0,0.001]
[1758409748961,10.94470939,4499.2,4499.0,0.001]
[1758409749830,16.17104804,4499.2,4499.0,0.001]
[1758409763133,16.17066398,4499.2,4499.0,0.001]
[1758409767346,6.69018592,4499.1,4499.0,0.001]
[1758409767559,7.02297473,4499.1,4499.0,0.001]
[1758409768060,7.11210517,4499.1,4499.0,0.001]
[1758409774863,7.35340517,4499.1,4499.0,0.001]
[1758409775207,7.35379236,4499.1,4499.0,0.001]
[1758409777242,3.01481497,4498.8,4498.7,0.001]
[1758409777478,9.28593513,4498.8,4498.7,0.001]
[1758409777945,9.37506556,4498.8,4498.7,0.001]
[1758409783277,9.37509127,4498.8,4498.7,0.001]
[1758409791302,9.37503497,4498.8,4498.7,0.001]
[1758409795614,9.3750288,4498.8,4498.7,0.001]
[1758409809895,13.59805828,4498.8,4498.7,0.001]
[1758409813344,13.84505828,4498.8,4498.7,0.001]
[1758409814065,13.84510617,4498.8,4498.7,0.001]
[1758409833058,9.37507669,4498.8,4498.7,0.001]
[1758409838164,9.37513899,4498.8,4498.7,0.001]
[1758409838730,9.962314,4498.8,4498.7,0.001]
[1758409839462,12.962314,4498.8,4498.7,0.001]
[1758409846182,12.96224545,4498.8,4498.7,0.001]
[1758409858185,12.96214713,4498.8,4498.7,0.001]
[1758409864640,6.69038355,4498.7,4498.5,0.001]
[1758409864935,7.26946611,4498.7,4498.5,0.001]
[1758409869841,12.4974911,4498.7,4498.5,0.001]
[1758409874472,2.22306204,4498.3,4498.2,0.001]
[1758409874766,10.6542695,4498.3,4498.2,0.001]
[1758409874956,15.88229449,4498.3,4498.2,0.001]
[1758409875156,15.97143863,4498.3,4498.2,0.001]
[1758409876678,10.74341364,4498.3,4498.2,0.046]
[1758409876883,9.99841511,4498.3,4498.2,0.046]
[1758409877179,9.99841511,4498.3,4498.2,0.001]
[1758409885580,9.99841511,4498.3,4497.8,0.001]
[1758409885581,3.0,4498.2,4497.8,0.001]
[1758409885743,6.01525974,4497.9,4497.8,0.001]
[1758409885947,12.28689366,4497.9,4497.8,0.001]
[1758409888503,12.62446867,4497.9,4497.8,0.001]
[1758409889376,12.62446867,4497.9,4497.6,0.001]
[1758409889377,6.0153586,4497.7,4497.6,1e-08]
[1758409889697,10.70356753,4497.7,4497.6,1e-08]
[1758409889894,10.92946753,4497.7,4497.6,1e-08]
[1758409898788,10.70356753,4497.7,4497.6,1e-08]
[1758409898989,10.92946753,4497.7,4497.6,1e-08]
[1758409901729,6.01550691,4497.4,4496.9,0.001]
[1758409901925,15.59416582,4497.4,4496.9,0.001]
[1758409902224,15.93174083,4497.4,4496.9,0.001]
[1758409905298,16.17874083,4497.4,4496.9,0.001]
[1758409906097,6.01560579,4497.2,4497.1,1e-08]
[1758409906296,10.70381472,4497.2,4497.1,1e-08]
[1758409906639,10.95081472,4497.2,4497.1,1e-08]
[1758409909416,10.70381472,4497.2,4497.1,1e-08]
[1758409909725,10.95081472,4497.2,4497.1,1e-08]
[1758409913455,8.60923971,4497.2,4497.1,1e-08]
[1758409913656,7.47929555,4497.2,4497.1,0.04500001]
[1758409913960,11.16029555,4497.2,4497.1,0.04500001]
[1758409914159,11.95229555,4497.2,4497.1,0.04500001]
[1758409915659,12.29023971,4497.2,4497.1,0.04500001]
[1758409917036,12.29012811,4497.2,4497.1,0.04500001]
[1758409917463,12.29015378,4497.2,4497.1,0.04500001]
[1758409919172,12.29015378,4497.2,4497.1,1e-08]
[1758409920974,12.29015378,4497.2,4497.1,0.04500001]
[1758409922674,12.29015378,4497.2,4497.1,1e-08]
[1758409923384,12.29115378,4497.2,4497.1,1e-08]
[1758409927988,12.29115378,4497.2,4497.1,0.00100001]
[1758409928784,6.68615378,4497.2,4497.1,0.00100001]
[1758409929091,12.29215378,4497.2,4497.1,0.04600001]
[1758409930192,7.81815378,4497.2,4497.1,0.00100001]
[1758409930487,6.57615378,4497.2,4497.1,0.04600001]
[1758409930659,0.67054799,4497.2,4497.1,0.04600001]
[1758409930868,4.01460383,4497.2,4497.1,0.04600001]
[1758409931195,0.33260383,4497.2,4497.1,0.00100001]
[1758409931348,6.23820962,4497.2,4497.1,0.04600001]
[1758409935215,2.55620962,4497.2,4497.1,0.04600001]
[1758409935532,6.23820962,4497.2,4497.1,0.04600001]
[1758409935692,4.01460383,4497.2,4497.1,0.04600001]
[1758409936222,6.23820962,4497.2,4497.1,0.04600001]
[1758409937533,0.33260383,4497.2,4497.1,0.00100001]
[1758409937718,4.01460383,4497.2,4497.1,0.04600001]
[1758409938328,6.23820962,4497.2,4497.1,0.04600001]
[1758409939049,6.23820962,4497.2,4497.1,0.00100001]
[1758409939721,6.23820058,4497.2,4497.1,0.00100001]
[1758409943027,6.46750058,4497.2,4497.1,0.00100001]
[1758409946662,6.46950058,4497.2,4497.1,0.00100001]
[1758409948664,6.24020058,4497.2,4497.1,0.00100001]
[1758409949068,6.46950058,4497.2,4497.1,0.00100001]
[1758409950070,6.24020058,4497.2,4497.1,0.00100001]
[1758409950379,6.80744474,4497.2,4497.1,0.00100001]
[1758409951799,9.80744474,4497.2,4497.1,0.00100001]
[1758409951937,10.93701975,4497.2,4497.1,0.00100001]
[1758409961173,12.86001975,4497.2,4497.1,0.00100001]
[1758409964909,12.63071975,4497.2,4497.1,0.00100001]
[1758409965115,16.85517445,4497.2,4497.1,0.00100001]
[1758409965411,17.08917445,4497.2,4497.1,0.00100001]
[1758409967014,12.86471975,4497.2,4497.1,0.00100001]
[1758409967194,12.52714474,4497.2,4497.1,0.00100001]
[1758409969434,12.29314474,4497.2,4497.1,0.00100001]
[1758409969643,12.52714474,4497.2,4497.1,0.00100001]
[1758409969814,12.29314474,4497.2,4497.1,0.00100001]
[1758409970022,12.52714474,4497.2,4497.1,0.00100001]
[1758409970737,12.29314474,4497.2,4497.1,0.00100001]
[1758409970943,16.51759944,4497.2,4497.1,0.00100001]
[1758409971142,16.75159944,4497.2,4497.1,0.00100001]
[1758409976149,12.29314474,4497.2,4497.1,0.00100001]
[1758409977415,12.52714474,4497.2,4497.1,0.00100001]
[1758409979657,12.29314474,4497.2,4497.1,0.00100001]
[1758409981361,12.52714474,4497.2,4497.1,0.00100001]
[1758409992502,12.29314474,4497.2,4497.1,0.00100001]
[1758409994579,12.52554474,4497.2,4497.1,0.00100001]
[1758410000107,12.29314474,4497.2,4497.1,0.00100001]
[1758410002315,12.52554474,4497.2,4497.1,0.00100001]
[1758410002613,12.52576145,4497.2,4497.1,0.00100001]
[1758410006831,12.5261552,4497.2,4497.1,0.00100001]
[1758410014346,12.2937552,4497.2,4497.1,0.00100001]
[1758410016132,12.5261552,4497.2,4497.1,0.00100001]
[1758410017849,12.2937552,4497.2,4497.1,0.00100001]
[1758410022829,12.29378093,4497.2,4497.1,0.00100001]
[1758410024723,12.52118093,4497.2,4497.1,0.00100001]
[1758410030254,12.29378093,4497.2,4497.1,0.00100001]
[1758410030571,12.8587382,4497.2,4497.1,0.00100001]
[1758410033657,12.6313382,4497.2,4497.1,0.00100001]
[1758410034572,12.29378093,4497.2,4497.1,0.00100001]
[1758410037304,8.61178093,4497.2,4497.1,0.00100001]
[1758410037604,12.29578093,4497.2,4497.1,0.00100001]
[1758410047782,7.81978093,4497.2,4497.1,0.00100001]
[1758410048036,11.50378093,4497.2,4497.1,0.00100001]
[1758410050698,5.89678093,4497.2,4497.1,0.00100001]
[1758410050909,9.58178093,4497.2,4497.1,0.00100001]
[1758410060647,14.03805143,4497.2,4497.1,0.00100001]
[1758410063865,14.83005143,4497.2,4497.1,0.00100001]
[1758410064069,15.1676087,4497.2,4497.1,0.00100001]
[1758410064280,15.16119642,4497.2,4497.1,0.00100001]
[1758410079603,14.59283915,4497.2,4497.1,0.00100001]
[1758410080686,14.82363915,4497.2,4497.1,0.00100001]
[1758410085526,14.82357771,4497.2,4497.1,0.00100001]
[1758410089517,14.61532261,4497.2,4497.1,0.00100001]
[1758410089823,14.59272843,4497.2,4497.1,0.00100001]
[1758410091117,14.82052843,4497.2,4497.1,0.00100001]
[1758410091425,14.59272843,4497.2,4497.1,0.00100001]
[1758410092114,14.82052843,4497.2,4497.1,0.00100001]
[1758410094640,14.82054095,4497.2,4497.1,0.00100001]
[1758410097838,14.82056188,4497.2,4497.1,0.00100001]
[1758410113772,10.59509138,4497.2,4497.1,0.00100001]
[1758410119437,10.36729138,4497.2,4497.1,0.00100001]
[1758410119643,10.59289138,4497.2,4497.1,0.00100001]
[1758410121173,3.01570469,4497.0,4496.9,0.001]
[1758410121479,12.60297704,4497.0,4496.9,0.001]
[1758410121653,12.82857704,4497.0,4496.9,0.001]
[1758410121844,12.91774502,4497.0,4496.9,0.001]
[1758410122563,12.9176991,4497.0,4496.9,0.001]
[1758410123451,16.25525637,4497.0,4496.9,0.001]
[1758410125859,16.02965637,4497.0,4496.9,0.001]
[1758410127277,16.25525637,4497.0,4496.9,0.001]
[1758410131679,16.02965637,4497.0,4496.9,0.001]
[1758410133584,16.25525637,4497.0,4496.9,0.001]
[1758410133790,16.02965637,4497.0,4496.9,0.001]
[1758410136515,16.0294474,4497.0,4496.9,0.001]
[1758410145249,16.02946832,4497.0,4496.9,0.001]
[1758410150916,16.26466832,4497.0,4496.9,0.001]
[1758410151111,16.02946832,4497.0,4496.9,0.001]
[1758410151349,16.26466832,4497.0,4496.9,0.001]
[1758410151550,16.02946832,4497.0,4496.9,0.001]
[1758410155342,16.26466832,4497.0,4496.9,0.001]
[1758410155959,7.11329384,4497.0,4496.9,0.001]
[1758410156164,6.77573657,4497.0,4496.9,0.001]
[1758410156363,12.38473657,4497.0,4496.9,0.001]
[1758410158868,12.61993657,4497.0,4496.9,0.001]
[1758410160165,12.38473657,4497.0,4496.9,0.001]
[1758410160332,8.69998477,4497.0,4496.9,0.001]
[1758410160532,12.38398477,4497.0,4496.9,0.001]
[1758410163147,12.38398484,4497.0,4496.9,0.001]
[1758410165894,8.69998484,4497.0,4496.9,0.001]
[1758410166103,12.38398484,4497.0,4496.9,0.001]
[1758410170159,12.38397748,4497.0,4496.9,0.001]
[1758410171206,12.38398674,4497.0,4496.9,0.001]
[1758410173796,16.61035286,4497.0,4496.9,0.001]
[1758410179095,16.61046642,4497.0,4496.9,0.001]
[1758410181710,16.85916642,4497.0,4496.9,0.001]
[1758410183699,16.61046642,4497.0,4496.9,0.001]
[1758410184904,16.85916642,4497.0,4496.9,0.001]
[1758410187322,16.85918454,4497.0,4496.9,0.001]
[1758410196925,9.66711842,4497.0,4496.9,0.001]
[1758410197123,5.98411842,4497.0,4496.9,0.001]
[1758410197518,9.66711842,4497.0,4496.9,0.001]
[1758410200154,13.89348454,4497.0,4496.9,0.001]
[1758410200520,14.14218454,4497.0,4496.9,0.001]
[1758410205135,13.89348454,4497.0,4496.9,0.001]
[1758410205346,14.12998454,4497.0,4496.9,0.001]
[1758410207379,13.79668295,4497.0,4496.9,0.001]
[1758410207574,14.13001813,4497.0,4496.9,0.001]
[1758410213176,13.89351813,4497.0,4496.9,0.001]
[1758410213368,14.13001813,4497.0,4496.9,0.001]
[1758410229034,16.05401813,4497.0,4496.9,0.001]
[1758410233805,11.82765201,4497.0,4496.9,0.001]
[1758410238555,11.82776821,4497.0,4496.9,0.001]
[1758410240940,11.82777009,4497.0,4496.9,0.001]
[1758410246648,11.8278872,4497.0,4496.9,0.001]
[1758410248541,11.5913872,4497.0,4496.9,0.001]
[1758410253870,11.5903872,4497.0,4496.9,0.001]
[1758410254571,7.9083872,4497.0,4496.9,0.001]
[1758410254903,11.5903872,4497.0,4496.9,0.001]
[1758410257705,7.9083872,4497.0,4496.9,0.001]
[1758410257878,11.5903872,4497.0,4496.9,0.001]
[1758410258806,11.25681683,4497.0,4496.9,0.001]
[1758410258980,11.59047097,4497.0,4496.9,0.001]
[1758410259488,11.59047143,4497.0,4496.9,0.001]
[1758410265135,11.82037143,4497.0,4496.9,0.001]
[1758410275650,12.61237143,4497.0,4496.9,0.001]
[1758410275856,12.9499287,4497.0,4496.9,0.001]
[1758410276042,8.58392735,4496.9,4496.8,0.001]
[1758410276344,8.91758195,4496.9,4496.8,0.001]
[1758410276548,9.14748195,4496.9,4496.8,0.001]
[1758410279352,12.48503922,4496.9,4496.8,0.001]
[1758410280858,12.48503922,4496.9,4496.6,0.001]
[1758410280859,2.22385304,4496.7,4496.6,0.001]
[1758410281069,10.37006491,4496.7,4496.6,0.001]
[1758410281346,10.70798809,4496.7,4496.6,0.001]
[1758410281534,10.93788809,4496.7,4496.6,0.001]
[1758410281918,0.792,4496.5,4496.1,0.01]
[1758410282267,10.45435038,4496.2,4496.1,0.01]
[1758410282552,14.80854628,4496.2,4496.1,0.01]
[1758410282839,15.03844628,4496.2,4496.1,0.01]
[1758410283743,15.37600355,4496.2,4496.1,0.01]
[1758410286147,15.37546776,4496.2,4496.1,0.01]
[1758410291792,15.37546776,4496.2,4496.1,0.011]
[1758410294598,15.37529762,4496.2,4496.1,0.011]
[1758410295791,14.37414403,4496.2,4496.1,0.011]
[1758410299252,14.14424403,4496.2,4496.1,0.011]
[1758410299475,14.38774403,4496.2,4496.1,0.011]
[1758410307279,6.01614981,4496.1,4495.6,0.001]
[1758410307486,8.61063978,4496.1,4495.6,0.001]
[1758410307985,8.69982586,4496.1,4495.6,0.001]
[1758410309987,8.7007166,4496.1,4495.6,0.001]
[1758410317210,2.22434771,4495.7,4495.6,0.001]
[1758410317376,13.46990168,4495.7,4495.6,0.001]
[1758410318078,13.46993343,4495.7,4495.6,0.001]
[1758410318413,13.46993259,4495.7,4495.6,0.001]
[1758410322278,13.46998184,4495.7,4495.6,0.001]
[1758410326422,13.46998174,4495.7,4495.6,0.001]
[1758410335051,15.39398174,4495.7,4495.6,0.001]
[1758410340772,11.1648853,4495.7,4495.6,0.001]
[1758410341046,15.39398174,4495.7,4495.6,0.001]
[1758410342747,15.73190492,4495.7,4495.6,0.001]
[1758410345201,15.73191981,4495.7,4495.6,0.001]
[1758410350764,15.96341981,4495.7,4495.6,0.001]
[1758410353379,15.96343141,4495.7,4495.6,0.001]
[1758410357786,11.73433497,4495.7,4495.6,0.001]
[1758410377717,11.60924119,4495.7,4495.6,0.001]
[1758410377880,11.73434294,4495.7,4495.6,0.001]
[1758410402368,12.86390021,4495.7,4495.6,0.001]
[1758410402666,12.86390021,4495.7,4495.2,0.001]
[1758410402667,2.22454563,4495.3,4495.2,0.001]
[1758410402861,15.14879394,4495.3,4495.2,0.001]
[1758410403164,16.16959394,4495.3,4495.2,0.001]
[1758410403364,16.25880249,4495.3,4495.2,0.001]
[1758410404369,6.01659512,4495.2,4495.1,1e-08]
[1758410404574,7.02564762,4495.2,4495.1,1e-08]
[1758410404872,7.27374762,4495.2,4495.1,1e-08]
[1758410412277,3.01709011,4494.2,4493.5,0.045]
[1758410412577,17.52878115,4494.2,4493.5,0.045]
[1758410414095,17.76288115,4494.2,4493.5,0.045]
[1758410414568,17.76251524,4494.2,4494.1,1e-08]
[1758410414910,3.01718914,4494.0,4493.3,0.045]
[1758410415047,2.22558532,4493.2,4493.1,0.055]
[1758410415246,6.24215737,4493.2,4493.1,0.055]
[1758410419702,6.24215737,4493.2,4493.1,0.056]
[1758410420985,6.24138009,4493.2,4493.1,0.056]
[1758410421359,6.24138009,4493.2,4493.1,0.011]
[1758410425717,6.24016035,4493.2,4493.1,0.011]
[1758410427603,12.29508353,4493.2,4493.1,0.011]
[1758410427789,12.8667408,4493.2,4493.1,0.011]
[1758410427989,8.9496408,4493.2,4493.1,0.011]
[1758410428195,12.6336408,4493.2,4493.1,0.011]
[1758410428787,8.9496408,4493.2,4493.1,0.011]
[1758410428972,8.1576408,4493.2,4493.1,0.011]
[1758410429172,11.50408353,4493.2,4493.1,0.011]
[1758410429910,11.16616035,4493.2,4493.1,0.011]
[1758410430803,7.48216035,4493.2,4493.1,0.011]
[1758410431304,11.16716035,4493.2,4493.1,0.056]
[1758410431708,11.16716035,4493.2,4493.1,0.011]
[1758410433191,11.16744032,4493.2,4493.1,0.011]
[1758410436380,7.48244032,4493.2,4493.1,0.011]
[1758410436610,11.16744032,4493.2,4493.1,0.056]
[1758410436919,11.16744032,4493.2,4493.1,0.011]
[1758410437306,11.16807301,4493.2,4493.1,0.011]
[1758410439908,5.55807301,4493.2,4493.1,0.011]
[1758410440118,9.24307301,4493.2,4493.1,0.056]
[1758410441797,7.01748769,4493.2,4493.1,0.056]
[1758410442123,7.0177051,4493.2,4493.1,0.056]
[1758410442727,9.24329042,4493.2,4493.1,0.056]
[1758410442952,0.3327051,4493.2,4493.1,0.056]
[1758410443159,4.0187051,4493.2,4493.1,0.056]
[1758410445040,0.3327051,4493.2,4493.1,0.056]
[1758410448252,0.3327051,4493.2,4493.1,0.2841769]
[1758410448658,0.3327051,4493.2,4493.1,0.056]
[1758410450953,0.3327051,4493.2,4493.1,0.011]
[1758410453977,4.0197051,4493.3,4493.1,0.011]
[1758410454199,0.3327051,4493.2,4493.1,0.011]
[1758410457382,0.33285748,4493.2,4493.1,0.011]
[1758410464413,0.33282859,4493.2,4493.1,0.011]
[1758410472235,0.20801787,4493.2,4493.1,0.011]
[1758410472537,0.33302666,4493.2,4493.1,0.011]
[1758410474428,2.80441198,4493.2,4493.1,0.011]
[1758410474628,3.14213414,4493.2,4493.1,0.011]
[1758410478654,6.14213414,4493.2,4493.1,0.011]
[1758410482971,7.27169141,4493.2,4493.1,0.011]
[1758410484357,7.27147435,4493.2,4493.1,0.011]
[1758410485662,7.27147435,4493.2,4493.1,1e-08]
[1758410485959,7.27147435,4493.2,4492.6,0.001]
[1758410485960,0.792,4492.7,4492.6,0.001]
[1758410486275,17.87932543,4492.7,4492.6,0.001]
[1758410486568,18.12512543,4492.7,4492.6,0.001]
[1758410490729,12.88672204,4492.7,4492.6,0.001]
[1758410490932,18.12512543,4492.7,4492.6,0.001]
[1758410494439,18.12512543,4492.7,4491.1,0.01]
[1758410494440,2.22657641,4491.2,4491.1,0.01]
[1758410494638,6.04298622,4491.2,4491.1,0.01]
[1758410495056,6.58804997,4491.2,4491.1,0.01]
[1758410495262,6.38070838,4491.2,4491.1,0.01]
[1758410496698,9.38070838,4491.2,4491.1,0.01]
[1758410496871,9.58793983,4491.2,4491.1,0.01]
[1758410497073,9.83373983,4491.2,4491.1,0.01]
[1758410500306,9.58793983,4491.2,4491.1,0.01]
[1758410500976,5.89593983,4491.2,4491.1,0.01]
[1758410501305,9.58893983,4491.2,4491.1,0.01]
[1758410502112,5.89593983,4491.2,4491.1,0.01]
[1758410502413,9.58893983,4491.2,4491.1,0.01]
[1758410503078,9.58874847,4491.2,4491.1,0.01]
[1758410505580,9.58874847,4491.2,4491.1,0.011]
[1758410506001,9.25102631,4491.2,4491.1,0.011]
[1758410506187,6.25102631,4491.2,4491.1,0.056]
[1758410506392,6.04379486,4491.2,4491.1,0.056]
[1758410507819,6.04479486,4491.2,4491.1,0.056]
[1758410508615,6.04491778,4491.2,4491.1,0.056]
[1758410509198,6.25221762,4491.2,4491.1,0.056]
[1758410509384,6.25221762,4491.2,4491.1,0.011]
[1758410511091,6.58993978,4491.2,4491.1,0.011]
[1758410511291,6.82713978,4491.2,4491.1,0.011]
[1758410511641,9.82713978,4491.2,4491.1,0.011]
[1758410511805,10.16469705,4491.2,4491.1,0.011]
[1758410518643,9.58993978,4491.2,4491.1,0.011]
[1758410521231,9.59893978,4491.2,4491.1,0.011]
[1758410521429,9.59993978,4491.2,4491.1,0.011]
[1758410523308,5.89593978,4491.2,4491.1,0.011]
[1758410523509,9.59893978,4491.2,4491.1,0.011]
[1758410525656,9.83913978,4491.2,4491.1,0.011]
[1758410527118,9.59893978,4491.2,4491.1,0.011]
[1758410527634,9.59985941,4491.2,4491.1,0.011]
[1758410531033,9.59885941,4491.2,4491.1,0.011]
[1758410532146,5.89685941,4491.2,4491.1,0.011]
[1758410532350,9.59885941,4491.2,4491.1,0.011]
[1758410534414,5.89685941,4491.2,4491.1,0.011]
[1758410534610,3.33256084,4491.2,4491.1,0.011]
[1758410534813,9.26013725,4491.2,4491.1,0.056]
[1758410535016,9.26013725,4491.2,4491.1,0.011]
[1758410535443,9.26080559,4491.2,4491.1,0.011]
[1758410538918,0.33322918,4491.2,4491.1,0.011]
[1758410539118,6.26080559,4491.2,4491.1,0.011]
[1758410540164,4.03422918,4491.2,4491.1,0.011]
[1758410540459,0.33322918,4491.2,4491.1,0.011]
[1758410540769,4.03422918,4491.2,4491.1,0.011]
[1758410541762,4.03414918,4491.2,4491.1,0.011]
[1758410542260,4.03414918,4491.2,4491.1,0.056]
[1758410542758,4.03414918,4491.2,4491.1,0.011]
[1758410543140,6.26072559,4491.2,4491.1,0.011]
[1758410543831,6.83384775,4491.2,4491.1,0.011]
[1758410550730,6.83381997,4491.2,4491.1,0.011]
[1758410562089,6.59841997,4491.2,4491.1,0.011]
[1758410563768,6.59851682,4491.2,4491.1,0.011]
[1758410565078,6.26079466,4491.2,4491.1,0.011]
[1758410568599,6.25679466,4491.2,4491.1,0.011]
[1758410575822,6.25703707,4491.2,4491.1,0.011]
[1758410576730,6.48483707,4491.2,4491.1,0.011]
[1758410591269,6.48183707,4491.2,4491.1,0.011]
[1758410594673,6.48185748,4491.2,4491.1,0.011]
[1758410595746,2.56005748,4491.2,4491.1,0.011]
[1758410595947,6.25405748,4491.2,4491.1,0.011]
[1758410598980,0.33348107,4491.2,4491.1,0.011]
[1758410599179,0.33348107,4491.2,4491.1,0.72559928]
[1758410599180,0.12506816,4491.2,4491.1,0.72559928]
[1758410599366,0.12506816,4491.4,4491.1,0.747579]
[1758410599680,0.12506816,4491.3,4491.1,0.011]
[1758410599884,3.694,4491.5,4491.1,0.011]
[1758410600086,0.12497182,4491.4,4491.1,0.011]
[1758410600250,0.12497182,4491.3,4491.1,0.011]
[1758410600447,0.12497182,4491.4,4491.1,0.011]
[1758410600647,3.694,4491.5,4491.1,0.011]
[1758410600648,0.12497182,4491.3,4491.1,0.011]
[1758410600860,0.12497182,4491.4,4491.1,0.011]
[1758410601061,0.12497182,4491.3,4491.1,0.011]
[1758410601285,0.12497182,4491.4,4491.1,0.011]
[1758410602163,3.81897182,4491.4,4491.1,0.056]
[1758410602373,3.694,4491.4,4491.2,0.29520674]
[1758410602697,3.694,4491.4,4491.1,0.056]
[1758410603397,3.694,4491.4,4491.1,0.011]
[1758410604517,5.92048872,4491.4,4491.1,0.011]
[1758410604860,3.694,4491.4,4491.1,0.011]
[1758410605465,5.92048962,4491.4,4491.1,0.011]
[1758410605903,2.22654575,4491.3,4491.1,0.011]
[1758410606805,6.16117641,4491.2,4491.1,0.011]
[1758410606965,6.28597919,4491.2,4491.1,0.011]
[1758410607368,6.49396294,4491.2,4491.1,0.011]
[1758410614837,6.49398724,4491.2,4491.1,0.011]
[1758410620143,6.25338724,4491.2,4491.1,0.011]
[1758410620550,2.55938724,4491.2,4491.1,0.011]
[1758410620732,6.25238724,4491.2,4491.1,0.011]
[1758410621519,2.55938724,4491.2,4491.1,0.011]
[1758410621715,6.25238724,4491.2,4491.1,0.011]
[1758410622555,6.49298724,4491.2,4491.1,0.011]
[1758410625666,2.79998724,4491.2,4491.1,0.011]
[1758410625869,6.49298724,4491.2,4491.1,0.011]
[1758410631269,6.25238724,4491.2,4491.1,0.011]
[1758410631470,6.25138724,4491.2,4491.1,0.011]
[1758410635047,6.25172295,4491.2,4491.1,0.011]
[1758410640482,2.55972295,4491.2,4491.1,0.011]
[1758410640775,6.25072295,4491.2,4491.1,0.011]
[1758410646449,0.33314654,4491.2,4491.1,0.011]
[1758410646655,2.96592995,4491.2,4491.1,0.011]